{"text_format":"1","workbook":"xlsx","n_sheets":13,"sheets":["Données","Cat 1e","Cat 2e","Cat 3e","Localité A","Localité B","Localité C","Stat Localité A","Stat Localité B","Stat Localité C","Volet Stat A","Volet Stat B","Volet Stat C"],"not_rendered":{"charts":0,"images":0,"macros":1,"external_links":1,"defined_names":26,"comments":0,"pivot_tables":0},"unopened":[],"bounds":{"document_bytes":16777216,"sheet_cells":100000,"rows_first":2000,"rows_last":500,"rows_between":2000,"halvings":0,"cell_chars":16384,"cell_head_chars":4096},"cells_cut":0,"cells_raw":0,"read":"whole","date_system":"1900"}

{"sheet":"Données","index":0,"n_rows":16,"n_cols":31,"rows_kept":16,"cut":false,"hidden":false,"merged":[]}
[]
[]
[]
[]
[null,null,null,null,null,null,null,null,null,null,"POINTS et valeurs coup"]
["n°","Catégorie","Localité","Equipe","Moniteur princ","Prénom","Nom","Date nais","Lieu nais","Sexe","Coup1","val","Coup2","val","Coup3","val","Coup4","val","Coup5","val","Coup6","val","Coup7","val","Coup8","val","Coup9","val","Total pts","Total val","Moyenne"]
[null,null,null,null,null,null,null,null,null,null,null,null,null,null,null,null,null,null,null,null,null,null,null,null,null,null,null,null,{"$f":"TotalPts(K7,M7,O7,Q7,S7,U7,W7,Y7,AA7)","v":0},{"$f":"TotalVal(K7,L7,M7,N7,O7,P7,Q7,R7,S7,T7,U7,V7,W7,X7,Y7,Z7,AA7,AB7)","v":0},{"$f":"IF(AD7>0,AC7/AD7,\" \")","v":" "}]
[null,null,null,null,null,null,null,null,null,null,null,null,null,null,null,null,null,null,null,null,null,null,null,null,null,null,null,null,0,0,{"$f":"IF(AD8>0,AC8/AD8,\" \")","v":" "}]
[null,null,null,null,null,null,null,null,null,null,null,null,null,null,null,null,null,null,null,null,null,null,null,null,null,null,null,null,0,0," "]
[null,null,null,null,null,null,null,null,null,null,null,null,null,null,null,null,null,null,null,null,null,null,null,null,null,null,null,null,0,0," "]
[null,null,null,null,null,null,null,null,null,null,null,null,null,null,null,null,null,null,null,null,null,null,null,null,null,null,null,null,0,0," "]
[null,null,null,null,null,null,null,null,null,null,null,null,null,null,null,null,null,null,null,null,null,null,null,null,null,null,null,null,0,0," "]
[null,null,null,null,null,null,null,null,null,null,null,null,null,null,null,null,null,null,null,null,null,null,null,null,null,null,null,null,0,0," "]
[null,null,null,null,null,null,null,null,null,null,null,null,null,null,null,null,null,null,null,null,null,null,null,null,null,null,null,null,0,0," "]
[null,null,null,null,null,null,null,null,null,null,null,null,null,null,null,null,null,null,null,null,null,null,null,null,null,null,null,null,0,0," "]
[null,null,null,null,null,null,null,null,null,null,null,null,null,null,null,null,null,null,null,null,null,null,null,null,null,null,null,null,0,0," "]

{"sheet":"Cat 1e","index":1,"n_rows":4,"n_cols":31,"rows_kept":4,"cut":false,"hidden":false,"merged":[]}
["n°","Catégorie","Localité","Equipe","Moniteur princ","Prénom","Nom","Date nais","Lieu nais","Sexe","Coup1","val","Coup2","val","Coup3","val","Coup4","val","Coup5","val","Coup6","val","Coup7","val","Coup8","val","Coup9","val","Total pts","Total val","Moyenne"]
[null,"1e","A",1,"E","SS","P","2003-10-12","Paris","F",12.5,2,0,1,8,4,3,1,10,2,11,4,13,3,"Abst",1,10,5,67.5,22,3.0681818181818183]
[null,"1e","A",1,"E","SS","P","2003-10-12","Paris","F",12.5,2,0,1,8,4,null,1,10,2,11,4,13,3,"Abst",1,10,5,64.5,21,3.0714285714285716]
[null,"1e","A",1,"E","SS","P","2003-10-12","Paris","F",12.5,2,0,1,8,4,null,1,10,2,11,4,13,3,"Abst",1,10,5,64.5,21,3.0714285714285716]

{"sheet":"Cat 2e","index":2,"n_rows":4,"n_cols":31,"rows_kept":4,"cut":false,"hidden":false,"merged":[]}
["n°","Catégorie","Localité","Equipe","Moniteur princ","Prénom","Nom","Date nais","Lieu nais","Sexe","Coup1","val","Coup2","val","Coup3","val","Coup4","val","Coup5","val","Coup6","val","Coup7","val","Coup8","val","Coup9","val","Total pts","Total val","Moyenne"]
[null,"2e","B",2,"R","GG","O","1956-02-11","Dakar","M",9,2,15,1,10,4,5,1,9,2,13,4,5,3,6,1,3,5,75,23,3.2608695652173911]
[null,"2e","B",2,"R","GG","O","1956-02-11","Dakar","M",9,2,15,1,10,4,5,1,9,2,13,4,5,3,6,1,3,5,75,23,3.2608695652173911]
[null,"2e","B",2,"R","GG","O","1956-02-11","Dakar","M",9,2,15,1,10,4,5,1,9,2,13,4,5,3,6,1,3,5,75,23,3.2608695652173911]

{"sheet":"Cat 3e","index":3,"n_rows":4,"n_cols":31,"rows_kept":4,"cut":false,"hidden":false,"merged":[]}
["n°","Catégorie","Localité","Equipe","Moniteur princ","Prénom","Nom","Date nais","Lieu nais","Sexe","Coup1","val","Coup2","val","Coup3","val","Coup4","val","Coup5","val","Coup6","val","Coup7","val","Coup8","val","Coup9","val","Total pts","Total val","Moyenne"]
[null,"3e","C",3,"H","NN","K","1998-09-12","Berne","F",11,2,18,1,11,4,18,1,7,2,8,4,9,3,10,1,6,5,98,23,4.2608695652173916]
[null,"3e","C",3,"H","NN","K","1998-09-12","Berne","F",11,2,18,1,11,4,18,1,7,2,8,4,9,3,10,1,6,5,98,23,4.2608695652173916]
[null,"3e","C",3,"H","NN","K","1998-09-12","Berne","F",11,2,18,1,11,4,18,1,7,2,8,4,9,3,10,1,6,5,98,23,4.2608695652173916]

{"sheet":"Localité A","index":4,"n_rows":1,"n_cols":31,"rows_kept":1,"cut":false,"hidden":false,"merged":[]}
["n°","Catégorie","Localité","Equipe","Moniteur princ","Prénom","Nom","Date nais","Lieu nais","Sexe","Coup1","val","Coup2","val","Coup3","val","Coup4","val","Coup5","val","Coup6","val","Coup7","val","Coup8","val","Coup9","val","Total pts","Total val","Moyenne"]

{"sheet":"Localité B","index":5,"n_rows":4,"n_cols":31,"rows_kept":4,"cut":false,"hidden":false,"merged":[]}
["n°","Catégorie","Localité","Equipe","Moniteur princ","Prénom","Nom","Date nais","Lieu nais","Sexe","Coup1","val","Coup2","val","Coup3","val","Coup4","val","Coup5","val","Coup6","val","Coup7","val","Coup8","val","Coup9","val","Total pts","Total val","Moyenne"]
[null,"2e","B",2,"R","GG","O","1956-02-11","Dakar","M",9,2,15,1,10,4,5,1,9,2,13,4,5,3,6,1,3,5,75,23,3.2608695652173911]
[null,"2e","B",2,"R","GG","O","1956-02-11","Dakar","M",9,2,15,1,10,4,5,1,9,2,13,4,5,3,6,1,3,5,75,23,3.2608695652173911]
[null,"2e","B",2,"R","GG","O","1956-02-11","Dakar","M",9,2,15,1,10,4,5,1,9,2,13,4,5,3,6,1,3,5,75,23,3.2608695652173911]

{"sheet":"Localité C","index":6,"n_rows":4,"n_cols":31,"rows_kept":4,"cut":false,"hidden":false,"merged":[]}
["n°","Catégorie","Localité","Equipe","Moniteur princ","Prénom","Nom","Date nais","Lieu nais","Sexe","Coup1","val","Coup2","val","Coup3","val","Coup4","val","Coup5","val","Coup6","val","Coup7","val","Coup8","val","Coup9","val","Total pts","Total val","Moyenne"]
[null,"3e","C",3,"H","NN","K","1998-09-12","Berne","F",11,2,18,1,11,4,18,1,7,2,8,4,9,3,10,1,6,5,98,23,4.2608695652173916]
[null,"3e","C",3,"H","NN","K","1998-09-12","Berne","F",11,2,18,1,11,4,18,1,7,2,8,4,9,3,10,1,6,5,98,23,4.2608695652173916]
[null,"3e","C",3,"H","NN","K","1998-09-12","Berne","F",11,2,18,1,11,4,18,1,7,2,8,4,9,3,10,1,6,5,98,23,4.2608695652173916]

{"sheet":"Stat Localité A","index":7,"n_rows":23,"n_cols":17,"rows_kept":23,"cut":false,"hidden":false,"merged":[[7,0,7,15],[9,1,10,1],[9,2,9,4],[9,5,9,13],[9,14,10,14]]}
["Saison"]
["Zone"]
["S Zone"]
["Utilisateur :"]
["Localité :"]
["Catégorie :"]
[]
["SYNTHESE A"]
[]
[null,"Cibles++","Ont participé",null,null,"Ont scoré",null,null,null,null,null,null,null,null,"Observations"]
[null,null,"M","F","Total","M","%","Seuil m","F","%","Seuil m","Total","%","Seuil m"]
[null,"Coup1",null,null,{"$f":"C12+D12","v":0},null,null,null,null,null,null,{"$f":"F12+I12","v":0},null,null,null,null,{"$f":"VLOOKUP(B12,[1]Paramètres!$D:$G,4,FALSE)","v":{"$error":"#N/A"}}]
[null,"Coup2",null,null,{"$f":"C13+D13","v":0},null,null,null,null,null,null,{"$f":"F13+I13","v":0},null,null,null,null,{"$f":"VLOOKUP(B13,[1]Paramètres!$D:$G,4,FALSE)","v":{"$error":"#N/A"}}]
[null,"Coup3",null,null,0,null,null,null,null,null,null,0,null,null,null,null,{"$f":"VLOOKUP(B14,[1]Paramètres!$D:$G,4,FALSE)","v":{"$error":"#N/A"}}]
[null,"Coup4",null,null,0,null,null,null,null,null,null,0,null,null,null,null,{"$f":"VLOOKUP(B15,[1]Paramètres!$D:$G,4,FALSE)","v":{"$error":"#N/A"}}]
[null,"Coup5",null,null,0,null,null,null,null,null,null,0,null,null,null,null,{"$f":"VLOOKUP(B16,[1]Paramètres!$D:$G,4,FALSE)","v":{"$error":"#N/A"}}]
[null,"Coup6",null,null,0,null,null,null,null,null,null,0,null,null,null,null,{"$f":"VLOOKUP(B17,[1]Paramètres!$D:$G,4,FALSE)","v":{"$error":"#N/A"}}]
[null,"Coup7",null,null,0,null,null,null,null,null,null,0,null,null,null,null,{"$f":"VLOOKUP(B18,[1]Paramètres!$D:$G,4,FALSE)","v":{"$error":"#N/A"}}]
[null,"Coup8",null,null,0,null,null,null,null,null,null,0,null,null,null,null,{"$f":"VLOOKUP(B19,[1]Paramètres!$D:$G,4,FALSE)","v":{"$error":"#N/A"}}]
[null,"Coup9",null,null,0,null,null,null,null,null,null,0,null,null,null,null,{"$f":"VLOOKUP(B20,[1]Paramètres!$D:$G,4,FALSE)","v":{"$error":"#N/A"}}]
[]
[]
[null,null,null,null,null,null,null,null,null,null,"Le Coordonnateur"]

{"sheet":"Stat Localité B","index":8,"n_rows":23,"n_cols":17,"rows_kept":23,"cut":false,"hidden":false,"merged":[[7,0,7,15],[9,1,10,1],[9,2,9,4],[9,5,9,13],[9,14,10,14]]}
["Saison"]
["Zone"]
["S Zone"]
["Utilisateur :"]
["Localité :"]
["Catégorie :"]
[]
["SYNTHESE B"]
[]
[null,"Cibles++","Ont participé",null,null,"Ont scoré",null,null,null,null,null,null,null,null,"Observations"]
[null,null,"M","F","Total","M","%","Seuil m","F","%","Seuil m","Total","%","Seuil m"]
[null,"Coup1",null,null,{"$f":"C12+D12","v":0},null,null,null,null,null,null,{"$f":"F12+I12","v":0},null,null,null,null,{"$f":"VLOOKUP(B12,[1]Paramètres!$D:$G,4,FALSE)","v":{"$error":"#N/A"}}]
[null,"Coup2",null,null,{"$f":"C13+D13","v":0},null,null,null,null,null,null,{"$f":"F13+I13","v":0},null,null,null,null,{"$f":"VLOOKUP(B13,[1]Paramètres!$D:$G,4,FALSE)","v":{"$error":"#N/A"}}]
[null,"Coup3",null,null,0,null,null,null,null,null,null,0,null,null,null,null,{"$f":"VLOOKUP(B14,[1]Paramètres!$D:$G,4,FALSE)","v":{"$error":"#N/A"}}]
[null,"Coup4",null,null,0,null,null,null,null,null,null,0,null,null,null,null,{"$f":"VLOOKUP(B15,[1]Paramètres!$D:$G,4,FALSE)","v":{"$error":"#N/A"}}]
[null,"Coup5",null,null,0,null,null,null,null,null,null,0,null,null,null,null,{"$f":"VLOOKUP(B16,[1]Paramètres!$D:$G,4,FALSE)","v":{"$error":"#N/A"}}]
[null,"Coup6",null,null,0,null,null,null,null,null,null,0,null,null,null,null,{"$f":"VLOOKUP(B17,[1]Paramètres!$D:$G,4,FALSE)","v":{"$error":"#N/A"}}]
[null,"Coup7",null,null,0,null,null,null,null,null,null,0,null,null,null,null,{"$f":"VLOOKUP(B18,[1]Paramètres!$D:$G,4,FALSE)","v":{"$error":"#N/A"}}]
[null,"Coup8",null,null,0,null,null,null,null,null,null,0,null,null,null,null,{"$f":"VLOOKUP(B19,[1]Paramètres!$D:$G,4,FALSE)","v":{"$error":"#N/A"}}]
[null,"Coup9",null,null,0,null,null,null,null,null,null,0,null,null,null,null,{"$f":"VLOOKUP(B20,[1]Paramètres!$D:$G,4,FALSE)","v":{"$error":"#N/A"}}]
[]
[]
[null,null,null,null,null,null,null,null,null,null,"Le Coordonnateur"]

{"sheet":"Stat Localité C","index":9,"n_rows":23,"n_cols":17,"rows_kept":23,"cut":false,"hidden":false,"merged":[[7,0,7,15],[9,1,10,1],[9,2,9,4],[9,5,9,13],[9,14,10,14]]}
["Saison"]
["Zone"]
["S Zone"]
["Utilisateur :"]
["Localité :"]
["Catégorie :"]
[]
["SYNTHESE C"]
[]
[null,"Cibles++","Ont participé",null,null,"Ont scoré",null,null,null,null,null,null,null,null,"Observations"]
[null,null,"M","F","Total","M","%","Seuil m","F","%","Seuil m","Total","%","Seuil m"]
[null,"Coup1",null,null,{"$f":"C12+D12","v":0},null,null,null,null,null,null,{"$f":"F12+I12","v":0},null,null,null,null,{"$f":"VLOOKUP(B12,[1]Paramètres!$D:$G,4,FALSE)","v":{"$error":"#N/A"}}]
[null,"Coup2",null,null,{"$f":"C13+D13","v":0},null,null,null,null,null,null,{"$f":"F13+I13","v":0},null,null,null,null,{"$f":"VLOOKUP(B13,[1]Paramètres!$D:$G,4,FALSE)","v":{"$error":"#N/A"}}]
[null,"Coup3",null,null,0,null,null,null,null,null,null,0,null,null,null,null,{"$f":"VLOOKUP(B14,[1]Paramètres!$D:$G,4,FALSE)","v":{"$error":"#N/A"}}]
[null,"Coup4",null,null,0,null,null,null,null,null,null,0,null,null,null,null,{"$f":"VLOOKUP(B15,[1]Paramètres!$D:$G,4,FALSE)","v":{"$error":"#N/A"}}]
[null,"Coup5",null,null,0,null,null,null,null,null,null,0,null,null,null,null,{"$f":"VLOOKUP(B16,[1]Paramètres!$D:$G,4,FALSE)","v":{"$error":"#N/A"}}]
[null,"Coup6",null,null,0,null,null,null,null,null,null,0,null,null,null,null,{"$f":"VLOOKUP(B17,[1]Paramètres!$D:$G,4,FALSE)","v":{"$error":"#N/A"}}]
[null,"Coup7",null,null,0,null,null,null,null,null,null,0,null,null,null,null,{"$f":"VLOOKUP(B18,[1]Paramètres!$D:$G,4,FALSE)","v":{"$error":"#N/A"}}]
[null,"Coup8",null,null,0,null,null,null,null,null,null,0,null,null,null,null,{"$f":"VLOOKUP(B19,[1]Paramètres!$D:$G,4,FALSE)","v":{"$error":"#N/A"}}]
[null,"Coup9",null,null,0,null,null,null,null,null,null,0,null,null,null,null,{"$f":"VLOOKUP(B20,[1]Paramètres!$D:$G,4,FALSE)","v":{"$error":"#N/A"}}]
[]
[]
[null,null,null,null,null,null,null,null,null,null,"Le Coordonnateur"]

{"sheet":"Volet Stat A","index":10,"n_rows":23,"n_cols":17,"rows_kept":23,"cut":false,"hidden":false,"merged":[[7,0,7,15],[9,1,10,1],[9,2,9,4],[9,5,9,13],[9,14,10,14]]}
["Saison"]
["Zone"]
["S Zone"]
["Utilisateur :"]
["Localité :"]
["Catégorie :"]
[]
["SYNTHESE  volet A"]
[]
[null,"Cibles++","Ont participé",null,null,"Ont scoré",null,null,null,null,null,null,null,null,"Observations"]
[null,null,"M","F","Total","M","%","Seuil m","F","%","Seuil m","Total","%","Seuil m"]
[null,"Coup1+",null,null,{"$f":"C12+D12","v":0},null,null,null,null,null,null,{"$f":"F12+I12","v":0},null,null,null,null,{"$f":"VLOOKUP(B12,[1]Paramètres!$D:$G,4,FALSE)","v":{"$error":"#N/A"}}]
[null,"Coup2+",null,null,{"$f":"C13+D13","v":0},null,null,null,null,null,null,{"$f":"F13+I13","v":0},null,null,null,null,{"$f":"VLOOKUP(B13,[1]Paramètres!$D:$G,4,FALSE)","v":{"$error":"#N/A"}}]
[null,"Coup3+",null,null,0,null,null,null,null,null,null,0,null,null,null,null,{"$f":"VLOOKUP(B14,[1]Paramètres!$D:$G,4,FALSE)","v":{"$error":"#N/A"}}]
[null,"Coup4+",null,null,0,null,null,null,null,null,null,0,null,null,null,null,{"$f":"VLOOKUP(B15,[1]Paramètres!$D:$G,4,FALSE)","v":{"$error":"#N/A"}}]
[null,"Coup5+",null,null,0,null,null,null,null,null,null,0,null,null,null,null,{"$f":"VLOOKUP(B16,[1]Paramètres!$D:$G,4,FALSE)","v":{"$error":"#N/A"}}]
[null,"Coup6+",null,null,0,null,null,null,null,null,null,0,null,null,null,null,{"$f":"VLOOKUP(B17,[1]Paramètres!$D:$G,4,FALSE)","v":{"$error":"#N/A"}}]
[null,"Coup7+",null,null,0,null,null,null,null,null,null,0,null,null,null,null,{"$f":"VLOOKUP(B18,[1]Paramètres!$D:$G,4,FALSE)","v":{"$error":"#N/A"}}]
[null,"Coup8+",null,null,0,null,null,null,null,null,null,0,null,null,null,null,{"$f":"VLOOKUP(B19,[1]Paramètres!$D:$G,4,FALSE)","v":{"$error":"#N/A"}}]
[null,"Coup9+",null,null,0,null,null,null,null,null,null,0,null,null,null,null,{"$f":"VLOOKUP(B20,[1]Paramètres!$D:$G,4,FALSE)","v":{"$error":"#N/A"}}]
[]
[]
[null,null,null,null,null,null,null,null,null,null,"Le Coordonnateur"]

{"sheet":"Volet Stat B","index":11,"n_rows":23,"n_cols":17,"rows_kept":23,"cut":false,"hidden":false,"merged":[[7,0,7,15],[9,1,10,1],[9,2,9,4],[9,5,9,13],[9,14,10,14]]}
["Saison"]
["Zone"]
["S Zone"]
["Utilisateur :"]
["Localité :"]
["Catégorie :"]
[]
["SYNTHESE  volet B"]
[]
[null,"Cibles++","Ont participé",null,null,"Ont scoré",null,null,null,null,null,null,null,null,"Observations"]
[null,null,"M","F","Total","M","%","Seuil m","F","%","Seuil m","Total","%","Seuil m"]
[null,"Coup1+",null,null,{"$f":"C12+D12","v":0},null,null,null,null,null,null,{"$f":"F12+I12","v":0},null,null,null,null,{"$f":"VLOOKUP(B12,[1]Paramètres!$D:$G,4,FALSE)","v":{"$error":"#N/A"}}]
[null,"Coup2+",null,null,{"$f":"C13+D13","v":0},null,null,null,null,null,null,{"$f":"F13+I13","v":0},null,null,null,null,{"$f":"VLOOKUP(B13,[1]Paramètres!$D:$G,4,FALSE)","v":{"$error":"#N/A"}}]
[null,"Coup3+",null,null,0,null,null,null,null,null,null,0,null,null,null,null,{"$f":"VLOOKUP(B14,[1]Paramètres!$D:$G,4,FALSE)","v":{"$error":"#N/A"}}]
[null,"Coup4+",null,null,0,null,null,null,null,null,null,0,null,null,null,null,{"$f":"VLOOKUP(B15,[1]Paramètres!$D:$G,4,FALSE)","v":{"$error":"#N/A"}}]
[null,"Coup5+",null,null,0,null,null,null,null,null,null,0,null,null,null,null,{"$f":"VLOOKUP(B16,[1]Paramètres!$D:$G,4,FALSE)","v":{"$error":"#N/A"}}]
[null,"Coup6+",null,null,0,null,null,null,null,null,null,0,null,null,null,null,{"$f":"VLOOKUP(B17,[1]Paramètres!$D:$G,4,FALSE)","v":{"$error":"#N/A"}}]
[null,"Coup7+",null,null,0,null,null,null,null,null,null,0,null,null,null,null,{"$f":"VLOOKUP(B18,[1]Paramètres!$D:$G,4,FALSE)","v":{"$error":"#N/A"}}]
[null,"Coup8+",null,null,0,null,null,null,null,null,null,0,null,null,null,null,{"$f":"VLOOKUP(B19,[1]Paramètres!$D:$G,4,FALSE)","v":{"$error":"#N/A"}}]
[null,"Coup9+",null,null,0,null,null,null,null,null,null,0,null,null,null,null,{"$f":"VLOOKUP(B20,[1]Paramètres!$D:$G,4,FALSE)","v":{"$error":"#N/A"}}]
[]
[]
[null,null,null,null,null,null,null,null,null,null,"Le Coordonnateur"]

{"sheet":"Volet Stat C","index":12,"n_rows":23,"n_cols":17,"rows_kept":23,"cut":false,"hidden":false,"merged":[[7,0,7,15],[9,1,10,1],[9,2,9,4],[9,5,9,13],[9,14,10,14]]}
["Saison"]
["Zone"]
["S Zone"]
["Utilisateur :"]
["Localité :"]
["Catégorie :"]
[]
["SYNTHESE  volet C"]
[]
[null,"Cibles++","Ont participé",null,null,"Ont scoré",null,null,null,null,null,null,null,null,"Observations"]
[null,null,"M","F","Total","M","%","Seuil m","F","%","Seuil m","Total","%","Seuil m"]
[null,"Coup1+",null,null,{"$f":"C12+D12","v":0},null,null,null,null,null,null,{"$f":"F12+I12","v":0},null,null,null,null,{"$f":"VLOOKUP(B12,[1]Paramètres!$D:$G,4,FALSE)","v":{"$error":"#N/A"}}]
[null,"Coup2+",null,null,{"$f":"C13+D13","v":0},null,null,null,null,null,null,{"$f":"F13+I13","v":0},null,null,null,null,{"$f":"VLOOKUP(B13,[1]Paramètres!$D:$G,4,FALSE)","v":{"$error":"#N/A"}}]
[null,"Coup3+",null,null,0,null,null,null,null,null,null,0,null,null,null,null,{"$f":"VLOOKUP(B14,[1]Paramètres!$D:$G,4,FALSE)","v":{"$error":"#N/A"}}]
[null,"Coup4+",null,null,0,null,null,null,null,null,null,0,null,null,null,null,{"$f":"VLOOKUP(B15,[1]Paramètres!$D:$G,4,FALSE)","v":{"$error":"#N/A"}}]
[null,"Coup5+",null,null,0,null,null,null,null,null,null,0,null,null,null,null,{"$f":"VLOOKUP(B16,[1]Paramètres!$D:$G,4,FALSE)","v":{"$error":"#N/A"}}]
[null,"Coup6+",null,null,0,null,null,null,null,null,null,0,null,null,null,null,{"$f":"VLOOKUP(B17,[1]Paramètres!$D:$G,4,FALSE)","v":{"$error":"#N/A"}}]
[null,"Coup7+",null,null,0,null,null,null,null,null,null,0,null,null,null,null,{"$f":"VLOOKUP(B18,[1]Paramètres!$D:$G,4,FALSE)","v":{"$error":"#N/A"}}]
[null,"Coup8+",null,null,0,null,null,null,null,null,null,0,null,null,null,null,{"$f":"VLOOKUP(B19,[1]Paramètres!$D:$G,4,FALSE)","v":{"$error":"#N/A"}}]
[null,"Coup9+",null,null,0,null,null,null,null,null,null,0,null,null,null,null,{"$f":"VLOOKUP(B20,[1]Paramètres!$D:$G,4,FALSE)","v":{"$error":"#N/A"}}]
[]
[]
[null,null,null,null,null,null,null,null,null,null,"Le Coordonnateur"]